fUST/lending_fUST_20240521
["ID","MTS","AMOUNT","RATE_DAILY","PERIOD"]
[327603708,1716250273535,-500.0,0.00044383,42]
[327603709,1716250273560,-625.27,0.00044383,42]
[327603710,1716250273583,-651.68,0.00044383,42]
[327603711,1716250273610,-581.41,0.00044383,42]
[327603712,1716250273636,-888.09,0.00044383,42]
[327603713,1716250273662,-500.0,0.00044383,42]
[327603714,1716250273685,-537.89,0.00044383,42]
[327603715,1716250273709,-1507.51,0.00044383,42]
[327603716,1716250273735,-940.8,0.00044383,42]
[327603717,1716250273759,-500.0,0.00044383,42]
[327603718,1716250273783,-500.0,0.00044383,42]
[327603719,1716250273808,-826.08,0.00044383,42]
[327603720,1716250273833,-500.0,0.00044383,42]
[327603721,1716250273857,-500.0,0.00044383,42]
[327603722,1716250273882,-14705.65,0.00044383,42]
[327603723,1716250273906,-500.0,0.00044383,42]
[327603724,1716250273934,-791.08,0.00044383,42]
[327603725,1716250273961,-2689.22,0.00044383,42]
[327603726,1716250273986,-500.0,0.00044383,42]
[327603727,1716250274011,-500.0,0.00044383,42]
[327603728,1716250274037,-500.0,0.00044383,42]
[327603729,1716250274062,-500.0,0.00044383,42]
[327603730,1716250274088,-1202.47,0.00044383,42]
[327603731,1716250274115,-500.0,0.00044383,42]
[327603732,1716250274140,-500.0,0.00044383,42]
[327603733,1716250274167,-500.0,0.00044383,42]
[327603734,1716250274192,-500.0,0.00044383,42]
[327603735,1716250274216,-500.0,0.00044383,42]
[327603736,1716250274243,-500.0,0.00044383,42]
[327603737,1716250274267,-500.0,0.00044383,42]
[327603738,1716250274292,-500.0,0.00044383,42]
[327603739,1716250274317,-500.0,0.00044383,42]
[327603740,1716250274341,-6292.26,0.00044383,42]
[327603741,1716250274365,-661.38,0.00044383,42]
[327603742,1716250274500,-500.0,0.00044383,42]
[327603743,1716250274531,-500.0,0.00044383,42]
[327603744,1716250274560,-714.09,0.00044383,42]
[327603745,1716250274584,-515.38,0.00044383,42]
[327603746,1716250274609,-609.19,0.00044383,42]
[327603747,1716250274632,-500.0,0.00044383,42]
[327603748,1716250274656,-513.90225455,0.00044383,42]
[327603749,1716250274684,-897.49,0.00044383,42]
[327603750,1716250274708,-500.0,0.00044383,42]
[327603751,1716250274731,-1349.58,0.00044383,42]
[327603752,1716250274756,-500.0,0.00044383,42]
[327603753,1716250274781,-708.7,0.00044383,42]
[327603754,1716250274804,-500.0,0.00044383,42]
[327603755,1716250274828,-501.88073443,0.00044383,42]
[327603756,1716250274851,-500.0,0.00044383,42]
[327603757,1716250274874,-675.43,0.00044383,42]
[327603758,1716250274898,-5945.23,0.00044383,42]
[327603759,1716250274922,-500.0,0.00044383,42]
[327603760,1716250274945,-552.82,0.00044383,42]
[327603761,1716250274969,-500.0,0.00044383,42]
[327603762,1716250274992,-500.0,0.00044383,42]
[327603763,1716250275015,-500.0,0.00044383,42]
[327603764,1716250275039,-615.66,0.00044383,42]
[327603765,1716250275063,-1192.84,0.00044383,42]
[327603766,1716250275086,-727.51,0.00044383,42]
[327603767,1716250275109,-6646.77,0.00044383,42]
[327603768,1716250275132,-500.0,0.00044383,42]
[327603769,1716250275156,-500.0,0.00044383,42]
[327603770,1716250275182,-5855.01,0.00044383,21]
[327603771,1716250275205,-734.26,0.00044383,42]
[327603772,1716250275230,-500.0,0.00044383,42]
[327603773,1716250275254,-500.0,0.00044383,42]
[327603774,1716250275277,-696.74,0.00044383,42]
[327603775,1716250275301,-500.0,0.00044383,42]
[327603776,1716250275324,-592.38,0.00044383,42]
[327603777,1716250275350,-1598.58,0.00044383,42]
[327603778,1716250275374,-742.62,0.00044383,42]
[327603779,1716250275398,-2458.86,0.00044383,42]
[327603780,1716250275425,-643.24177733,0.00044383,42]
[327603781,1716250275449,-500.0,0.00044383,42]
[327603782,1716250275474,-904.06,0.00044383,42]
[327603783,1716250275499,-1786.36,0.00044383,42]
[327603784,1716250275523,-500.0,0.00044383,42]
[327603785,1716250275550,-500.0,0.00044383,42]
[327603786,1716250275574,-679.04,0.00044383,42]
[327603787,1716250275598,-500.0,0.00044383,42]
[327603788,1716250275624,-1073.93,0.00044383,42]
[327603789,1716250275648,-451.03267422,0.00044383,42]
[327603790,1716250275674,-500.0,0.00044383,42]
[327603791,1716250275698,-1174.18,0.00044383,42]
[327603792,1716250275721,-500.0,0.00044383,42]
[327603793,1716250275744,-1689.27,0.00044383,42]
[327603794,1716250275767,-2003.34,0.00044383,42]
[327603795,1716250275791,-500.0,0.00044383,42]
[327603796,1716250275814,-629.77,0.00044383,42]
[327603797,1716250275837,-500.0,0.00044383,42]
[327603798,1716250275861,-1268.06,0.00044383,42]
[327603799,1716250275884,-500.0,0.00044383,42]
[327603800,1716250275908,-500.0,0.00044383,42]
[327603801,1716250275933,-500.0,0.00044383,42]
[327603802,1716250275956,-609.76,0.00044383,42]
[327603803,1716250275979,-4297.75,0.00044383,42]
[327603804,1716250276003,-1708.43,0.00044383,42]
[327603805,1716250276027,-25984.4,0.00044383,42]
[327603806,1716250276050,-500.0,0.00044383,42]
[327603807,1716250276073,-500.0,0.00044383,42]
[327603808,1716250276096,-500.0,0.00044383,42]
[327603809,1716250276120,-806.75,0.00044383,42]
[327603810,1716250276143,-500.0,0.00044383,42]
[327603811,1716250276166,-500.0,0.00044383,42]
[327603812,1716250276189,-500.0,0.00044383,42]
[327603813,1716250276213,-500.0,0.00044383,42]
[327603814,1716250276236,-500.0,0.00044383,42]
[327603815,1716250276260,-1114.89,0.00044383,42]
[327603816,1716250276283,-518.12,0.00044383,42]
[327603817,1716250276420,-1435.27,0.00044383,42]
[327603818,1716250276445,-500.0,0.00044383,42]
[327603819,1716250276470,-500.0,0.00044383,42]
[327603820,1716250276494,-629.31,0.00044383,42]
[327603821,1716250276523,-3000.0,0.00044383,30]
[327603822,1716250276547,-519.09734436,0.00044383,42]
[327603823,1716250276575,-4136.4,0.00044383,42]
[327603824,1716250276600,-1356.54,0.00044383,42]
[327603825,1716250276628,-1000.0,0.00044383,42]
[327603826,1716250276652,-500.0,0.00044383,42]
[327603827,1716250276682,-975.11,0.00044383,42]
[327603828,1716250276707,-915.69,0.00044383,42]
[327603829,1716250276731,-500.0,0.00044383,30]
[327603830,1716250276758,-500.0,0.00044383,42]
[327603831,1716250276782,-511.8,0.00044383,42]
[327603832,1716250276807,-493.82277151,0.00044383,42]
[327603833,1716250276832,-2656.56,0.00044383,42]
[327603834,1716250276864,-500.0,0.00044383,42]
[327603835,1716250276889,-500.0,0.00044383,42]
[327603836,1716250276916,-500.0,0.00044383,42]
[327603837,1716250276941,-200.0,0.00044493,120]
[327603838,1716250276965,-563.0,0.000446,20]
[327603839,1716250276988,-563.0,0.000446,20]
[327603840,1716250277012,-563.0,0.000446,20]
[327603841,1716250277036,-2000.0,0.000446,20]
[327603842,1716250277060,-1699.0,0.000446,20]
[327603843,1716250277084,-150.5,0.00044627,35]
[327603844,1716250277111,-1425.0,0.00044627,35]
[327603845,1716250277133,-208.0,0.0004463,35]
[327603846,1716250277158,-1425.0,0.00044637,35]
[327603847,1716250277184,-208.0,0.0004464,35]
[327603848,1716250277209,-1425.0,0.00044647,35]
[327603849,1716250277234,-208.0,0.0004465,35]
[327603850,1716250277258,-367.23758335,0.00044657,43]
[327603851,1716250277284,-500.0,0.00044657,43]
[327603852,1716250277308,-860.78,0.00044657,43]
[327603853,1716250277331,-314.50882443,0.00044657,43]
[327603854,1716250277355,-500.0,0.00044657,43]
[327603855,1716250277378,-500.0,0.00044657,43]
[327603856,1716250277405,-500.0,0.00044657,43]
[327603857,1716250277432,-500.0,0.00044657,43]
[327603858,1716250277458,-500.0,0.00044657,43]
[327603859,1716250277481,-500.0,0.00044657,43]
[327603860,1716250277504,-500.0,0.00044657,43]
[327603861,1716250277532,-650.18,0.00044657,43]
[327603862,1716250277555,-500.0,0.00044657,43]
[327603863,1716250277579,-593.56031945,0.00044657,43]
[327603864,1716250277603,-500.0,0.00044657,43]
[327603865,1716250277629,-500.0,0.00044657,43]
[327603866,1716250277651,-500.0,0.00044657,43]
[327603867,1716250277677,-998.69,0.00044657,43]
[327603868,1716250277701,-500.0,0.00044657,43]
[327603869,1716250277728,-500.0,0.00044657,43]
[327603870,1716250277752,-848.94,0.00044657,43]
[327603871,1716250277776,-500.0,0.00044657,43]
[327603872,1716250277807,-500.0,0.00044657,43]
[327603873,1716250277832,-500.0,0.00044657,43]
[327603874,1716250277856,-150.08927576,0.00044657,43]
[327603875,1716250277880,-500.0,0.00044657,43]
[327603876,1716250277909,-500.0,0.00044657,43]
[327603877,1716250277936,-731.45,0.00044657,43]
[327603878,1716250277959,-500.0,0.00044657,43]
[327603879,1716250277983,-500.0,0.00044657,43]
[327603880,1716250278006,-500.0,0.00044657,43]
[327603881,1716250278029,-500.0,0.00044657,43]
[327603882,1716250278052,-542.91,0.00044657,43]
[327603883,1716250278075,-500.0,0.00044657,43]
[327603884,1716250278098,-500.0,0.00044657,43]
[327603885,1716250278121,-500.0,0.00044657,43]
[327603886,1716250278144,-500.0,0.00044657,43]
[327603887,1716250278170,-500.0,0.00044657,43]
[327603888,1716250278194,-500.0,0.00044657,43]
[327603889,1716250278303,-500.0,0.00044657,43]
[327603890,1716250278348,-500.0,0.00044657,43]
[327603891,1716250278372,-500.0,0.00044657,43]
[327603892,1716250278396,-500.0,0.00044657,43]
[327603893,1716250278420,-500.0,0.00044657,43]
[327603894,1716250278444,-500.0,0.00044657,43]
[327603895,1716250278469,-500.0,0.00044657,43]
[327603896,1716250278493,-500.0,0.00044657,43]
[327603897,1716250278522,-500.0,0.00044657,43]
[327603898,1716250278546,-1171.07,0.00044657,43]
[327603899,1716250278572,-500.0,0.00044657,43]
[327603900,1716250278598,-500.0,0.00044657,43]
[327603901,1716250278624,-500.0,0.00044657,43]
[327603902,1716250278649,-500.0,0.00044657,43]
[327603903,1716250278676,-500.0,0.00044657,43]
[327603904,1716250278699,-500.0,0.00044657,43]
[327603905,1716250278724,-925.0,0.00044657,43]
[327603906,1716250278749,-554.23,0.00044657,43]
[327603907,1716250278773,-517.85499725,0.00044657,43]
[327603908,1716250278797,-500.0,0.00044657,43]
[327603909,1716250278819,-894.89,0.00044657,43]
[327603910,1716250278844,-500.0,0.00044657,43]
[327603911,1716250278869,-500.0,0.00044657,43]
[327603912,1716250278894,-761.16,0.00044657,43]
[327603913,1716250278921,-1579.25,0.00044657,43]
[327603914,1716250278946,-902.49,0.00044657,43]
[327603915,1716250278970,-500.0,0.00044657,43]
[327603916,1716250279000,-500.0,0.00044657,43]
[327603917,1716250279025,-500.0,0.00044657,43]
[327603918,1716250279049,-500.0,0.00044657,43]
[327603919,1716250279073,-500.0,0.00044657,43]
[327603920,1716250279097,-804.18,0.00044657,43]
[327603921,1716250279120,-1000.0,0.00044657,43]
[327603922,1716250279144,-1106.09,0.00044657,43]
[327603923,1716250279170,-500.0,0.00044657,43]
[327603924,1716250279194,-1516.44,0.00044657,43]
[327603925,1716250279218,-500.0,0.00044657,43]
[327603926,1716250279242,-500.0,0.00044657,43]
[327603927,1716250279265,-500.0,0.00044657,43]
[327603928,1716250279289,-869.16,0.00044657,43]
[327603929,1716250279313,-500.0,0.00044657,43]
[327603930,1716250279337,-715.03,0.00044657,43]
[327603931,1716250279361,-500.0,0.00044657,43]
[327603932,1716250279385,-500.0,0.00044657,43]
[327603933,1716250279410,-500.0,0.00044657,43]
[327603934,1716250279436,-522.92,0.00044657,43]
[327603935,1716250279460,-500.0,0.00044657,43]
[327603936,1716250279490,-878.66,0.00044657,43]
[327603937,1716250279515,-500.0,0.00044657,43]
[327603938,1716250279543,-638.77,0.00044657,43]
[327603939,1716250279568,-500.0,0.00044657,43]
[327603940,1716250279594,-500.0,0.00044657,43]
[327603941,1716250279624,-1368.41,0.00044657,43]
[327603942,1716250279648,-996.2,0.00044657,43]
[327603943,1716250279674,-500.0,0.00044657,43]
[327603944,1716250279699,-500.0,0.00044657,43]
[327603945,1716250279723,-1196.81,0.00044657,43]
[327603946,1716250279746,-500.0,0.00044657,43]
[327603947,1716250279770,-1308.24,0.00044657,43]
[327603948,1716250279794,-620.21,0.00044657,43]
[327603949,1716250279819,-531.36,0.00044657,43]
[327603950,1716250279849,-574.44,0.00044657,43]
[327603951,1716250279874,-823.14,0.00044657,43]
[327603952,1716250279899,-500.0,0.00044657,43]
[327603953,1716250279931,-382.29427707,0.00044657,43]
[327603954,1716250279956,-1185.03,0.00044657,43]
[327603955,1716250279981,-500.0,0.00044657,43]
[327603956,1716250280008,-500.0,0.00044657,43]
[327603957,1716250280032,-674.84,0.00044657,43]
[327603958,1716250280058,-500.0,0.00044657,43]
[327603959,1716250280084,-1013.81,0.00044657,43]
[327603960,1716250280270,-547.38520278,0.00044657,43]
[327603961,1716250280295,-1048.39,0.00044657,43]
[327603962,1716250280319,-1098.26,0.00044657,43]
[327603963,1716250280342,-502.67671451,0.00044657,43]
[327603964,1716250280366,-565.27,0.00044657,43]
[327603965,1716250280390,-500.0,0.00044657,43]
[327603966,1716250280415,-846.06,0.00044657,43]
[327603967,1716250280440,-1018.37,0.00044657,43]
[327603968,1716250280464,-735.36,0.00044657,43]
[327603969,1716250280488,-1352.95,0.00044657,43]
[327603970,1716250280514,-519.34634851,0.00044657,43]
[327603971,1716250280542,-770.24,0.00044657,43]
[327603972,1716250280566,-500.0,0.00044657,43]
[327603973,1716250280590,-500.0,0.00044657,43]
[327603974,1716250280619,-500.0,0.00044657,43]
[327603975,1716250280643,-500.0,0.00044657,43]
[327603976,1716250280670,-500.0,0.00044657,43]
[327603977,1716250280695,-502.59866115,0.00044657,43]
[327603978,1716250280720,-500.0,0.00044657,43]
[327603979,1716250280747,-500.0,0.00044657,43]
[327603980,1716250280771,-500.0,0.00044657,43]
[327603981,1716250280795,-1297.57,0.00044657,43]
[327603982,1716250280820,-500.0,0.00044657,43]
[327603983,1716250280844,-500.0,0.00044657,43]
[327603984,1716250280869,-500.0,0.00044657,43]
[327603985,1716250280893,-606.98,0.00044657,43]
[327603986,1716250280917,-772.88,0.00044657,43]
[327603987,1716250280942,-697.82,0.00044657,43]
[327603988,1716250280966,-762.28,0.00044657,43]
[327603989,1716250280991,-691.02,0.00044657,43]
[327603990,1716250281016,-500.0,0.00044657,20]
[327603991,1716250281040,-500.0,0.00044657,43]
[327603992,1716250281067,-692.02,0.00044657,43]
[327603993,1716250281091,-669.76,0.00044657,43]
[327603994,1716250281114,-500.0,0.00044657,43]
[327603995,1716250281139,-501.43,0.00044657,43]
[327603996,1716250281163,-500.0,0.00044657,43]
[327603997,1716250281190,-500.0,0.00044657,43]
[327603998,1716250281214,-502.57,0.00044657,43]
[327603999,1716250281237,-500.0,0.00044657,43]
[327604000,1716250281262,-500.0,0.00044657,43]
[327604001,1716250281287,-500.0,0.00044657,43]
[327604002,1716250281311,-1333.45,0.00044657,43]
[327604003,1716250281335,-509.60231934,0.00044657,43]
[327604004,1716250281359,-500.0,0.00044657,43]
[327604005,1716250281384,-500.0,0.00044657,43]
[327604006,1716250281408,-515.3,0.00044657,43]
[327604007,1716250281434,-500.0,0.00044657,43]
[327604008,1716250281461,-509.54,0.00044657,43]
[327604009,1716250281485,-500.0,0.00044657,43]
[327604010,1716250281509,-500.0,0.00044657,43]
[327604011,1716250281536,-500.0,0.00044657,43]
[327604012,1716250281560,-500.0,0.00044657,43]
[327604013,1716250281584,-611.64,0.00044657,43]
[327604014,1716250281610,-1446.01,0.00044657,43]
[327604015,1716250281637,-592.75,0.00044657,43]
[327604016,1716250281661,-500.0,0.00044657,43]
[327604017,1716250281687,-1128.65,0.00044657,43]
[327604018,1716250281711,-500.0,0.00044657,43]
[327604019,1716250281735,-500.0,0.00044657,43]
[327604020,1716250281758,-500.0,0.00044657,43]
[327604021,1716250281782,-755.61,0.00044657,43]
[327604022,1716250281807,-500.0,0.00044657,43]
[327604023,1716250281830,-500.0,0.00044657,43]
[327604024,1716250281853,-500.0,0.00044657,14]
[327604025,1716250281876,-500.0,0.00044657,43]
[327604026,1716250281899,-500.0,0.00044657,43]
[327604027,1716250282043,-500.0,0.00044657,43]
[327604028,1716250282070,-508.28383881,0.00044657,43]
[327604029,1716250282094,-500.0,0.00044657,43]
[327604030,1716250282118,-500.0,0.00044657,43]
[327604031,1716250282142,-500.0,0.00044657,120]
[327604032,1716250282166,-500.0,0.00044657,43]
[327604033,1716250282192,-836.73,0.00044657,43]
[327604034,1716250282216,-967.9,0.00044657,43]
[327604035,1716250282243,-808.43,0.00044657,43]
[327604036,1716250282267,-925.88,0.00044657,43]
[327604037,1716250282293,-219.84142741,0.00044657,43]
[327604038,1716250282317,-525.85792543,0.00044657,43]
[327604039,1716250282341,-500.0,0.00044657,43]
[327604040,1716250282365,-4085.77,0.00044657,43]
[327604041,1716250282390,-500.0,0.00044657,43]
[327604042,1716250282414,-1102.4,0.00044657,43]
[327604043,1716250282441,-373.55965579,0.00044657,43]
[327604044,1716250282466,-526.14,0.00044657,43]
[327604045,1716250282491,-566.13,0.00044657,43]
[327604046,1716250282520,-510.95,0.00044657,43]
[327604047,1716250282544,-500.0,0.00044657,43]
[327604048,1716250282571,-2734.75,0.00044657,43]
[327604049,1716250282598,-500.0,0.00044657,43]
[327604050,1716250282623,-1153.85,0.00044657,43]
[327604051,1716250282648,-500.0,0.00044657,43]
[327604052,1716250282676,-1301.76,0.00044657,43]
[327604053,1716250282702,-807.26,0.00044657,43]
[327604054,1716250282727,-709.66,0.00044657,43]
[327604055,1716250282751,-500.0,0.00044657,43]
[327604056,1716250282776,-500.0,0.00044657,43]
[327604057,1716250282802,-2556.46,0.00044657,43]
[327604058,1716250282826,-500.0,0.00044657,43]
[327604059,1716250282850,-500.0,0.00044657,43]
[327604060,1716250282875,-500.0,0.00044657,43]
[327604061,1716250282899,-500.0,0.00044657,43]
[327604062,1716250282928,-625.27,0.00044657,43]
[327604063,1716250282952,-651.68,0.00044657,43]
[327604064,1716250282977,-581.41,0.00044657,43]
[327604065,1716250283004,-888.09,0.00044657,43]
[327604066,1716250283030,-500.0,0.00044657,43]
[327604067,1716250283055,-537.89,0.00044657,43]
[327604068,1716250283079,-1507.51,0.00044657,43]
[327604069,1716250283103,-940.8,0.00044657,43]
[327604070,1716250283128,-500.0,0.00044657,43]
[327604071,1716250283151,-282.41301659,0.00044657,43]
[327604072,1716250283177,-826.08,0.00044657,43]
[327604073,1716250283201,-500.0,0.00044657,43]
[327604074,1716250283224,-500.0,0.00044657,43]
[327604075,1716250283250,-14705.65,0.00044657,43]
[327604076,1716250283274,-500.0,0.00044657,43]
[327604077,1716250283298,-791.08,0.00044657,43]
[327604078,1716250283321,-2689.22,0.00044657,43]
[327604079,1716250283346,-500.0,0.00044657,43]
[327604080,1716250283372,-500.0,0.00044657,43]
[327604081,1716250283396,-500.0,0.00044657,43]
[327604082,1716250283423,-500.0,0.00044657,43]
[327604083,1716250283447,-1202.47,0.00044657,43]
[327604084,1716250283472,-500.0,0.00044657,43]
[327604085,1716250283496,-500.0,0.00044657,43]
[327604086,1716250283521,-500.0,0.00044657,43]
[327604087,1716250283550,-500.0,0.00044657,43]
[327604088,1716250283575,-500.0,0.00044657,43]
[327604089,1716250283599,-500.0,0.00044657,43]
[327604090,1716250283627,-500.0,0.00044657,43]
[327604091,1716250283652,-500.0,0.00044657,43]
[327604092,1716250283676,-577.06170929,0.00044657,43]
[327604093,1716250283802,-6292.26,0.00044657,43]
[327604094,1716250283828,-661.38,0.00044657,43]
[327604095,1716250283853,-500.0,0.00044657,43]
[327604096,1716250283877,-500.0,0.00044657,43]
[327604097,1716250283903,-714.09,0.00044657,43]
[327604098,1716250283933,-515.38,0.00044657,43]
[327604099,1716250283958,-609.19,0.00044657,43]
[327604100,1716250283983,-500.0,0.00044657,43]
[327604101,1716250284007,-897.49,0.00044657,43]
[327604102,1716250284030,-500.0,0.00044657,43]
[327604103,1716250284055,-1349.58,0.00044657,43]
[327604104,1716250284080,-500.0,0.00044657,43]
[327604105,1716250284104,-708.7,0.00044657,43]
[327604106,1716250284128,-500.0,0.00044657,43]
[327604107,1716250284152,-500.0,0.00044657,43]
[327604108,1716250284180,-675.43,0.00044657,43]
[327604109,1716250284205,-5945.23,0.00044657,43]
[327604110,1716250284230,-500.0,0.00044657,43]
[327604111,1716250284255,-552.82,0.00044657,43]
[327604112,1716250284279,-500.0,0.00044657,43]
[327604113,1716250284304,-500.0,0.00044657,43]
[327604114,1716250284328,-500.0,0.00044657,43]
[327604115,1716250284353,-615.66,0.00044657,43]
[327604116,1716250284377,-1192.84,0.00044657,43]
[327604117,1716250284402,-727.51,0.00044657,43]
[327604118,1716250284427,-6646.77,0.00044657,43]
[327604119,1716250284452,-567.8613696,0.00044657,43]
[327604120,1716250284476,-500.0,0.00044657,43]
[327604121,1716250284501,-5855.01,0.00044657,21]
[327604122,1716250284529,-734.26,0.00044657,43]
[327604123,1716250284553,-214.78027306,0.00044657,43]
[327604124,1716250284579,-354.94002662,0.00044657,43]
[327604125,1716250284604,-696.74,0.00044657,43]
[327604126,1716250284629,-500.0,0.00044657,43]
[327604127,1716250284652,-592.38,0.00044657,43]
[327604128,1716250284677,-1598.58,0.00044657,43]
[327604129,1716250284701,-742.62,0.00044657,43]
[327604130,1716250284733,-2458.86,0.00044657,43]
[327604131,1716250284758,-500.0,0.00044657,43]
[327604132,1716250284789,-904.06,0.00044657,43]
[327604133,1716250284813,-1786.36,0.00044657,43]
[327604134,1716250284837,-531.46777959,0.00044657,43]
[327604135,1716250284863,-500.0,0.00044657,43]
[327604136,1716250284887,-679.04,0.00044657,43]
[327604137,1716250284913,-500.0,0.00044657,43]
[327604138,1716250284939,-1073.93,0.00044657,43]
[327604139,1716250284965,-500.0,0.00044657,43]
[327604140,1716250284992,-1174.18,0.00044657,43]
[327604141,1716250285018,-500.0,0.00044657,43]
[327604142,1716250285043,-1689.27,0.00044657,43]
[327604143,1716250285068,-2003.34,0.00044657,43]
[327604144,1716250285093,-500.0,0.00044657,43]
[327604145,1716250285118,-629.77,0.00044657,43]
[327604146,1716250285144,-500.0,0.00044657,43]
[327604147,1716250285168,-1268.06,0.00044657,43]
[327604148,1716250285194,-500.0,0.00044657,43]
[327604149,1716250285219,-500.0,0.00044657,43]
[327604150,1716250285244,-500.0,0.00044657,43]
[327604151,1716250285270,-609.76,0.00044657,43]
[327604152,1716250285295,-4297.75,0.00044657,43]
[327604153,1716250285320,-1708.43,0.00044657,43]
[327604154,1716250285346,-25984.4,0.00044657,43]
[327604155,1716250285373,-500.0,0.00044657,43]
[327604156,1716250285490,-500.0,0.00044657,43]
[327604157,1716250285515,-500.0,0.00044657,43]
[327604158,1716250285542,-806.75,0.00044657,43]
[327604159,1716250285567,-500.0,0.00044657,43]
[327604160,1716250285592,-240.01079495,0.00044657,43]
[327604161,1716250285618,-225.43205507,0.00044657,43]
[327604162,1716250285643,-500.0,0.00044657,43]
[327604163,1716250285670,-500.0,0.00044657,43]
[327604164,1716250285697,-1114.89,0.00044657,43]
[327604165,1716250285723,-518.12,0.00044657,43]
[327604166,1716250285748,-1435.27,0.00044657,43]
[327604167,1716250285773,-500.0,0.00044657,43]
[327604168,1716250285799,-553.74324913,0.00044657,43]
[327604169,1716250285823,-629.31,0.00044657,43]
[327604170,1716250285847,-3000.0,0.00044657,30]
[327604171,1716250285871,-4136.4,0.00044657,43]
[327604172,1716250285896,-1356.54,0.00044657,43]
[327604173,1716250285922,-1000.0,0.00044657,43]
[327604174,1716250285947,-500.0,0.00044657,43]
[327604175,1716250285974,-975.11,0.00044657,43]
[327604176,1716250285999,-915.69,0.00044657,43]
[327604177,1716250286024,-500.0,0.00044657,30]
[327604178,1716250286047,-500.0,0.00044657,43]
[327604179,1716250286072,-511.8,0.00044657,43]
[327604180,1716250286096,-2656.56,0.00044657,43]
[327604181,1716250286121,-500.0,0.00044657,43]
[327604182,1716250286145,-500.0,0.00044657,43]
[327604183,1716250286168,-500.0,0.00044657,43]
[327604184,1716250286194,-259.0,0.0004467,35]
[327604185,1716250286218,-223.0,0.0004467,35]
[327604186,1716250286243,-553.0,0.0004467,15]
[327604187,1716250286268,-544.0,0.0004467,35]
[327604188,1716250286292,-259.0,0.0004468,35]
[327604189,1716250286316,-223.0,0.0004468,35]
[327604190,1716250286339,-553.0,0.0004468,15]
[327604191,1716250286362,-544.0,0.0004468,35]
[327604192,1716250286385,-259.0,0.0004469,35]
[327604193,1716250286409,-223.0,0.0004469,35]
[327604194,1716250286434,-553.0,0.0004469,15]
[327604195,1716250286458,-544.0,0.0004469,35]
[327604196,1716250286484,-154.922967,0.00044811,30]
[327604197,1716250286508,-7500.0,0.000449,45]
[327604198,1716250286547,-507.0,0.00044931,30]
[327604199,1716250286572,-558.51403464,0.00044931,30]
[327604200,1716250286595,-507.0,0.00044931,30]
[327604201,1716250286620,-500.0,0.00044931,44]
[327604202,1716250286644,-860.78,0.00044931,44]
[327604203,1716250286669,-500.0,0.00044931,44]
[327604204,1716250286694,-500.0,0.00044931,44]
[327604205,1716250286718,-500.0,0.00044931,44]
[327604206,1716250286743,-500.0,0.00044931,44]
[327604207,1716250286767,-500.0,0.00044931,44]